[Event "*** SCC Grand Prix: Titled Tuesday Blitz"]
[Site "Chess.com"]
[Date "2020.07.07"]
[Round "8"]
[White "Mikhail_Golubev"]
[Black "Iskusnyh"]
[Result "0-1"]
[WhiteElo "2596"]
[BlackElo "2468"]
[TimeControl "180+1"]
[EndTime "11:36:30 PDT"]
[Termination "Iskusnyh won on time"]

1. e4 {[%clk 0:03:00.9]} 1... e6 {[%clk 0:02:59.6]} 2. d4 {[%clk 0:03:00.3]}
2... d5 {[%clk 0:03:00.1]} 3. Nc3 {[%clk 0:03:00.5]} 3... Nf6 {[%clk 0:02:59.9]}
4. Bg5 {[%clk 0:02:59.2]} 4... dxe4 {[%clk 0:02:59.3]} 5. Nxe4 {[%clk
0:02:58.7]} 5... Nbd7 {[%clk 0:02:59.8]} 6. Nf3 {[%clk 0:02:56.9]} 6... h6
{[%clk 0:02:59.7]} 7. Nxf6+ {[%clk 0:02:55.1]} 7... Nxf6 {[%clk 0:02:59.4]} 8.
Bxf6 {[%clk 0:02:54.5]} 8... Qxf6 {[%clk 0:02:58.3]} 9. Bb5+ {[%clk 0:02:54.3]}
9... c6 {[%clk 0:02:57.6]} 10. Bd3 {[%clk 0:02:53.9]} 10... g6 {[%clk
0:02:57.2]} 11. Qe2 {[%clk 0:02:37.1]} 11... Bg7 {[%clk 0:02:56.5]} 12. c3
{[%clk 0:02:34.8]} 12... O-O {[%clk 0:02:52.9]} 13. h4 {[%clk 0:02:29]} 13...
Rd8 {[%clk 0:02:39.1]} 14. Rd1 {[%clk 0:02:01.6]} 14... Bd7 {[%clk 0:02:33.7]}
15. h5 {[%clk 0:01:52.7]} 15... g5 {[%clk 0:02:33.2]} 16. O-O {[%clk 0:01:52.6]}
16... Be8 {[%clk 0:01:54]} 17. Nd2 {[%clk 0:01:42.5]} 17... b6 {[%clk
0:01:31.1]} 18. Ne4 {[%clk 0:01:39.8]} 18... Qf4 {[%clk 0:01:28.7]} 19. g3
{[%clk 0:01:36.3]} 19... Qc7 {[%clk 0:01:28]} 20. f4 {[%clk 0:01:27.3]} 20...
gxf4 {[%clk 0:01:21.2]} 21. Rxf4 {[%clk 0:01:20.1]} 21... c5 {[%clk 0:01:19.2]}
22. Kh2 {[%clk 0:00:32.4]} 22... cxd4 {[%clk 0:01:17.3]} 23. Nf6+ {[%clk
0:00:31.6]} 23... Bxf6 {[%clk 0:00:50.7]} 24. Rxf6 {[%clk 0:00:31.3]} 24... dxc3
{[%clk 0:00:48.1]} 25. Rxh6 {[%clk 0:00:20.4]} 25... Rd4 {[%clk 0:00:29.4]} 26.
Kh3 {[%clk 0:00:05.9]} 26... c2 {[%clk 0:00:25.4]} 27. Bxc2 {[%clk 0:00:04.7]}
27... Rad8 {[%clk 0:00:21.1]} 28. Rxd4 {[%clk 0:00:02.5]} 28... Rxd4 {[%clk
0:00:21.1]} 29. Qe3 {[%clk 0:00:02.8]} 29... Qc5 {[%clk 0:00:19.5]} 30. Be4
{[%clk 0:00:01.9]} 30... Kf8 {[%clk 0:00:14.9]} 31. Rh8+ {[%clk 0:00:01.9]}
31... Ke7 {[%clk 0:00:15.1]} 32. h6 {[%clk 0:00:02.5]} 32... Qh5+ {[%clk
0:00:14.4]} 33. Kg2 {[%clk 0:00:02.7]} 33... Qe5 {[%clk 0:00:10.9]} 34. h7
{[%clk 0:00:02.7]} 34... Qxh8 {[%clk 0:00:10.1]} 35. Qg5+ {[%clk 0:00:01.8]}
35... f6 {[%clk 0:00:08.6]} 36. Qf4 {[%clk 0:00:01.3]} 36... f5 {[%clk
0:00:06.4]} 0-1

[Event "*** SCC Grand Prix: Titled Tuesday Blitz"]
[Site "Chess.com"]
[Date "2020.07.07"]
[Round "8"]
[White "Morshynska"]
[Black "anon569"]
[Result "0-1"]
[WhiteElo "2174"]
[BlackElo "2343"]
[TimeControl "180+1"]
[EndTime "11:36:32 PDT"]
[Termination "anon569 won on time"]

1. e4 {[%clk 0:03:00.9]} 1... c5 {[%clk 0:02:59.4]} 2. Nf3 {[%clk 0:03:00.4]}
2... d6 {[%clk 0:02:58.8]} 3. Bb5+ {[%clk 0:02:58.8]} 3... Bd7 {[%clk
0:02:58.3]} 4. a4 {[%clk 0:02:55.9]} 4... g6 {[%clk 0:02:54.6]} 5. O-O {[%clk
0:02:54.7]} 5... Bg7 {[%clk 0:02:54.2]} 6. d4 {[%clk 0:02:45.1]} 6... cxd4
{[%clk 0:02:48.3]} 7. Nxd4 {[%clk 0:02:46]} 7... Nc6 {[%clk 0:02:48.3]} 8. Be3
{[%clk 0:02:38]} 8... Nf6 {[%clk 0:02:47.3]} 9. Nc3 {[%clk 0:02:25.1]} 9... O-O
{[%clk 0:02:44.5]} 10. f3 {[%clk 0:02:13.7]} 10... a6 {[%clk 0:02:37.3]} 11. Bc4
{[%clk 0:01:43.3]} 11... Rc8 {[%clk 0:02:34.6]} 12. Bb3 {[%clk 0:01:29]} 12...
Na5 {[%clk 0:02:29.3]} 13. Qd2 {[%clk 0:01:15.3]} 13... Nc4 {[%clk 0:02:18.7]}
14. Bxc4 {[%clk 0:01:14.5]} 14... Rxc4 {[%clk 0:02:19.2]} 15. a5 {[%clk
0:01:08.8]} 15... Qc8 {[%clk 0:01:59.6]} 16. Rfd1 {[%clk 0:01:02.1]} 16... Rd8
{[%clk 0:01:47.5]} 17. Nde2 {[%clk 0:01:00.5]} 17... Be6 {[%clk 0:01:34.4]} 18.
Nd4 {[%clk 0:00:44.7]} 18... Nd7 {[%clk 0:01:29.9]} 19. Nce2 {[%clk 0:00:31.5]}
19... Re8 {[%clk 0:01:16.5]} 20. b3 {[%clk 0:00:29.8]} 20... Rc7 {[%clk
0:01:13.3]} 21. c4 {[%clk 0:00:26.3]} 21... Ne5 {[%clk 0:01:08.3]} 22. Nxe6
{[%clk 0:00:22.6]} 22... fxe6 {[%clk 0:01:07.2]} 23. Rac1 {[%clk 0:00:19.8]}
23... Rf8 {[%clk 0:01:04.7]} 24. Nd4 {[%clk 0:00:17.9]} 24... Qd7 {[%clk
0:00:56.6]} 25. Bh6 {[%clk 0:00:17.4]} 25... Rcc8 {[%clk 0:00:53.7]} 26. Bxg7
{[%clk 0:00:16.9]} 26... Kxg7 {[%clk 0:00:54]} 27. Nc2 {[%clk 0:00:15.5]} 27...
Qe8 {[%clk 0:00:50.3]} 28. Rf1 {[%clk 0:00:12.3]} 28... Nc6 {[%clk 0:00:48.5]}
29. Qc3+ {[%clk 0:00:10.3]} 29... e5 {[%clk 0:00:46.6]} 30. b4 {[%clk
0:00:08.4]} 30... Qd8 {[%clk 0:00:44.6]} 31. f4 {[%clk 0:00:07.9]} 31... Kg8
{[%clk 0:00:43.4]} 32. f5 {[%clk 0:00:07.7]} 32... Rf6 {[%clk 0:00:36.8]} 33.
Ne3 {[%clk 0:00:06.9]} 33... Nd4 {[%clk 0:00:36]} 34. Rf2 {[%clk 0:00:04.1]}
34... Qd7 {[%clk 0:00:32.2]} 35. Rcf1 {[%clk 0:00:03.1]} 35... Rcf8 {[%clk
0:00:31.2]} 36. Nd5 {[%clk 0:00:02.6]} 36... R6f7 {[%clk 0:00:30.6]} 37. g4
{[%clk 0:00:01.9]} 37... e6 {[%clk 0:00:25.8]} 0-1

[Event "*** SCC Grand Prix: Titled Tuesday Blitz"]
[Site "Chess.com"]
[Date "2020.07.07"]
[Round "8"]
[White "Skatchkov_V"]
[Black "malandragem"]
[Result "1-0"]
[WhiteElo "2543"]
[BlackElo "2392"]
[TimeControl "180+1"]
[EndTime "11:36:33 PDT"]
[Termination "Skatchkov_V won by checkmate"]

1. d4 {[%clk 0:03:00.6]} 1... Nf6 {[%clk 0:02:59]} 2. c4 {[%clk 0:03:00.3]} 2...
g6 {[%clk 0:02:59.4]} 3. Nf3 {[%clk 0:03:00.9]} 3... Bg7 {[%clk 0:02:59.5]} 4.
g3 {[%clk 0:03:01.8]} 4... d6 {[%clk 0:03:00]} 5. Bg2 {[%clk 0:03:02.6]} 5...
O-O {[%clk 0:03:00.5]} 6. O-O {[%clk 0:03:03.4]} 6... Nc6 {[%clk 0:03:01.1]} 7.
Nc3 {[%clk 0:03:04.2]} 7... e5 {[%clk 0:03:01.4]} 8. dxe5 {[%clk 0:03:04.3]}
8... dxe5 {[%clk 0:03:02.3]} 9. Bg5 {[%clk 0:03:04.6]} 9... Be6 {[%clk
0:03:02.3]} 10. Qa4 {[%clk 0:03:05.1]} 10... Qc8 {[%clk 0:03:02.5]} 11. Nd2
{[%clk 0:02:58.1]} 11... Nd7 {[%clk 0:02:53.3]} 12. Nd5 {[%clk 0:02:37.5]} 12...
f6 {[%clk 0:02:31]} 13. Be3 {[%clk 0:02:27.6]} 13... Kh8 {[%clk 0:02:31]} 14.
Rad1 {[%clk 0:02:20.9]} 14... f5 {[%clk 0:02:31.1]} 15. Nf3 {[%clk 0:01:49.5]}
15... h6 {[%clk 0:02:30.8]} 16. b4 {[%clk 0:01:47.8]} 16... e4 {[%clk
0:02:13.5]} 17. Nd4 {[%clk 0:01:30.3]} 17... Nb6 {[%clk 0:02:13.8]} 18. Qb3
{[%clk 0:01:26.9]} 18... Bf7 {[%clk 0:02:14]} 19. b5 {[%clk 0:01:02.5]} 19...
Ne5 {[%clk 0:02:13.9]} 20. Rc1 {[%clk 0:00:55.1]} 20... Ng4 {[%clk 0:02:12.2]}
21. Rfd1 {[%clk 0:00:46.8]} 21... g5 {[%clk 0:01:35.2]} 22. Ne7 {[%clk
0:00:44.5]} 22... Qe8 {[%clk 0:01:29.6]} 23. Nexf5 {[%clk 0:00:44.8]} 23... Nxe3
{[%clk 0:01:19.8]} 24. Qxe3 {[%clk 0:00:45.7]} 24... Nxc4 {[%clk 0:01:16.2]} 25.
Qxe4 {[%clk 0:00:46.1]} 25... Qxe4 {[%clk 0:00:56.4]} 26. Bxe4 {[%clk 0:00:47]}
26... Na5 {[%clk 0:00:44.8]} 27. Nxg7 {[%clk 0:00:45.5]} 27... Kxg7 {[%clk
0:00:44.5]} 28. Nf5+ {[%clk 0:00:46.4]} 28... Kf6 {[%clk 0:00:42.5]} 29. Nxh6
{[%clk 0:00:46.4]} 29... Bxa2 {[%clk 0:00:40.8]} 30. Rxc7 {[%clk 0:00:45.5]}
30... Rad8 {[%clk 0:00:39.5]} 31. Ng4+ {[%clk 0:00:45.7]} 31... Ke6 {[%clk
0:00:38.1]} 32. Rxd8 {[%clk 0:00:45]} 32... Rxd8 {[%clk 0:00:38.2]} 33. Rg7
{[%clk 0:00:45.1]} 33... Rd1+ {[%clk 0:00:26.7]} 34. Kg2 {[%clk 0:00:45.2]}
34... Nc4 {[%clk 0:00:27.3]} 35. Rxg5 {[%clk 0:00:44.1]} 35... Nd2 {[%clk
0:00:27.4]} 36. Bxb7 {[%clk 0:00:41.4]} 36... Bc4 {[%clk 0:00:26.5]} 37. Bc6
{[%clk 0:00:39.6]} 37... Bxe2 {[%clk 0:00:26.3]} 38. Re5+ {[%clk 0:00:40.1]}
38... Kd6 {[%clk 0:00:24.6]} 39. Rxe2 {[%clk 0:00:41]} 39... a6 {[%clk
0:00:23.2]} 40. Ne3 {[%clk 0:00:41]} 40... Rg1+ {[%clk 0:00:19]} 41. Kxg1 {[%clk
0:00:41.1]} 41... Nf3+ {[%clk 0:00:19.9]} 42. Bxf3 {[%clk 0:00:41.4]} 42... axb5
{[%clk 0:00:20.8]} 43. h4 {[%clk 0:00:41.9]} 43... b4 {[%clk 0:00:21.7]} 44. h5
{[%clk 0:00:42.8]} 44... b3 {[%clk 0:00:22.6]} 45. Rb2 {[%clk 0:00:43.5]} 45...
Ke5 {[%clk 0:00:21.6]} 46. Rxb3 {[%clk 0:00:43.2]} 46... Kd4 {[%clk 0:00:22.2]}
47. h6 {[%clk 0:00:42.6]} 47... Ke5 {[%clk 0:00:22.8]} 48. h7 {[%clk 0:00:43.5]}
48... Kd6 {[%clk 0:00:23.4]} 49. h8=Q {[%clk 0:00:43.7]} 49... Ke7 {[%clk
0:00:24.3]} 50. Rb7+ {[%clk 0:00:43.3]} 50... Kd6 {[%clk 0:00:25.2]} 51. Qf6+
{[%clk 0:00:43.7]} 51... Kc5 {[%clk 0:00:26.1]} 52. Qc6+ {[%clk 0:00:44.1]}
52... Kd4 {[%clk 0:00:26.3]} 53. Rd7+ {[%clk 0:00:45]} 53... Ke5 {[%clk
0:00:26.4]} 54. Rd5# {[%clk 0:00:42.5]} 1-0

[Event "*** SCC Grand Prix: Titled Tuesday Blitz"]
[Site "Chess.com"]
[Date "2020.07.07"]
[Round "8"]
[White "mbojan"]
[Black "ErikRonka"]
[Result "1-0"]
[WhiteElo "2546"]
[BlackElo "2394"]
[TimeControl "180+1"]
[EndTime "11:36:35 PDT"]
[Termination "mbojan won by checkmate"]

1. e4 {[%clk 0:03:00.9]} 1... c6 {[%clk 0:02:55.8]} 2. d4 {[%clk 0:03:00.5]}
2... d5 {[%clk 0:02:55.9]} 3. Nc3 {[%clk 0:03:00.8]} 3... dxe4 {[%clk
0:02:55.8]} 4. Nxe4 {[%clk 0:03:01.1]} 4... Bf5 {[%clk 0:02:56.4]} 5. Ng3 {[%clk
0:03:01.1]} 5... Bg6 {[%clk 0:02:56.9]} 6. Nf3 {[%clk 0:03:01.5]} 6... Nd7
{[%clk 0:02:56.3]} 7. h4 {[%clk 0:03:01.7]} 7... h6 {[%clk 0:02:56.5]} 8. h5
{[%clk 0:03:02.3]} 8... Bh7 {[%clk 0:02:57.1]} 9. Bd3 {[%clk 0:03:02.9]} 9...
Bxd3 {[%clk 0:02:57.8]} 10. Qxd3 {[%clk 0:03:03.8]} 10... e6 {[%clk 0:02:58.5]}
11. Bd2 {[%clk 0:03:04.3]} 11... Qc7 {[%clk 0:02:56.9]} 12. O-O-O {[%clk
0:03:04.2]} 12... Ngf6 {[%clk 0:02:57.3]} 13. Kb1 {[%clk 0:03:03.5]} 13... O-O-O
{[%clk 0:02:57.6]} 14. Ne4 {[%clk 0:03:00]} 14... Nxe4 {[%clk 0:02:28.4]} 15.
Qxe4 {[%clk 0:03:00.9]} 15... Bd6 {[%clk 0:02:28.8]} 16. c4 {[%clk 0:02:51.5]}
16... c5 {[%clk 0:02:16.2]} 17. Bc3 {[%clk 0:02:50.9]} 17... Nf6 {[%clk
0:02:00.9]} 18. Qe2 {[%clk 0:02:48.9]} 18... cxd4 {[%clk 0:01:50]} 19. Nxd4
{[%clk 0:02:30.6]} 19... a6 {[%clk 0:01:49.4]} 20. Nf3 {[%clk 0:02:22.8]} 20...
Qc6 {[%clk 0:01:37.6]} 21. Rh4 {[%clk 0:01:40.9]} 21... Rd7 {[%clk 0:01:31.8]}
22. Bxf6 {[%clk 0:01:15.1]} 22... gxf6 {[%clk 0:01:30.3]} 23. Qe4 {[%clk
0:01:15.7]} 23... Qc5 {[%clk 0:00:40.1]} 24. Qd4 {[%clk 0:01:03.6]} 24... Qf5+
{[%clk 0:00:27.8]} 25. Qd3 {[%clk 0:00:56.5]} 25... Qxd3+ {[%clk 0:00:19.8]} 26.
Rxd3 {[%clk 0:00:56.4]} 26... Bc5 {[%clk 0:00:18.6]} 27. Rxd7 {[%clk 0:00:53.4]}
27... Kxd7 {[%clk 0:00:19.5]} 28. Rf4 {[%clk 0:00:30.5]} 28... f5 {[%clk
0:00:17.1]} 29. Nd2 {[%clk 0:00:30.7]} 29... Rg8 {[%clk 0:00:15.8]} 30. g3
{[%clk 0:00:30.6]} 30... Rg5 {[%clk 0:00:12.8]} 31. a3 {[%clk 0:00:21.5]} 31...
Rxh5 {[%clk 0:00:11.6]} 32. b4 {[%clk 0:00:22.1]} 32... Bd6 {[%clk 0:00:10.8]}
33. Rd4 {[%clk 0:00:22]} 33... Kc7 {[%clk 0:00:11]} 34. c5 {[%clk 0:00:21.6]}
34... Be5 {[%clk 0:00:11]} 35. Rd3 {[%clk 0:00:22]} 35... f4 {[%clk 0:00:10.7]}
36. g4 {[%clk 0:00:20.2]} 36... Rh1+ {[%clk 0:00:10.3]} 37. Kc2 {[%clk
0:00:20.6]} 37... h5 {[%clk 0:00:07]} 38. gxh5 {[%clk 0:00:20]} 38... Rxh5
{[%clk 0:00:06.6]} 39. Nc4 {[%clk 0:00:20.7]} 39... Bf6 {[%clk 0:00:05.6]} 40.
Nb6 {[%clk 0:00:20.8]} 40... e5 {[%clk 0:00:02.9]} 41. Rd7+ {[%clk 0:00:20.6]}
41... Kc6 {[%clk 0:00:02.5]} 42. Rxf7 {[%clk 0:00:21.1]} 42... Bd8 {[%clk
0:00:02.1]} 43. Kd3 {[%clk 0:00:20.4]} 43... Bxb6 {[%clk 0:00:02.1]} 44. Rf6+
{[%clk 0:00:20]} 44... Kd5 {[%clk 0:00:02.5]} 45. Rd6# {[%clk 0:00:19.5]} 1-0

[Event "*** SCC Grand Prix: Titled Tuesday Blitz"]
[Site "Chess.com"]
[Date "2020.07.07"]
[Round "8"]
[White "olksuna"]
[Black "Dyadya81"]
[Result "1-0"]
[WhiteElo "2634"]
[BlackElo "2733"]
[TimeControl "180+1"]
[EndTime "11:36:36 PDT"]
[Termination "olksuna won on time"]

1. Nf3 {[%clk 0:03:00.9]} 1... d5 {[%clk 0:02:59.5]} 2. g3 {[%clk 0:03:01]} 2...
Nc6 {[%clk 0:02:59.8]} 3. d4 {[%clk 0:02:55.2]} 3... Bg4 {[%clk 0:02:59.2]} 4.
Bg2 {[%clk 0:02:54.1]} 4... Qd7 {[%clk 0:02:57.9]} 5. O-O {[%clk 0:02:50.9]}
5... O-O-O {[%clk 0:02:58.1]} 6. c4 {[%clk 0:02:45.8]} 6... dxc4 {[%clk
0:02:54.9]} 7. Qa4 {[%clk 0:02:45.4]} 7... Kb8 {[%clk 0:02:46.2]} 8. Qxc4 {[%clk
0:02:44.2]} 8... Nxd4 {[%clk 0:02:36]} 9. Nxd4 {[%clk 0:02:23.1]} 9... Qxd4
{[%clk 0:02:36.9]} 10. Qxf7 {[%clk 0:02:23]} 10... Bxe2 {[%clk 0:02:25]} 11. Re1
{[%clk 0:01:41]} 11... Nf6 {[%clk 0:02:12.4]} 12. Qb3 {[%clk 0:01:27.3]} 12...
Ba6 {[%clk 0:01:59.3]} 13. Nc3 {[%clk 0:01:19.1]} 13... Ng4 {[%clk 0:01:52.3]}
14. Be3 {[%clk 0:01:12.4]} 14... Nxe3 {[%clk 0:01:50]} 15. Rxe3 {[%clk
0:01:13.3]} 15... Qb6 {[%clk 0:01:37.2]} 16. Rd1 {[%clk 0:00:52.6]} 16... Rxd1+
{[%clk 0:01:25.2]} 17. Qxd1 {[%clk 0:00:53.5]} 17... Qd6 {[%clk 0:01:24.8]} 18.
Qe1 {[%clk 0:00:53.9]} 18... g6 {[%clk 0:01:19.7]} 19. Re6 {[%clk 0:00:53]}
19... Qb4 {[%clk 0:01:17.3]} 20. Qe5 {[%clk 0:00:46]} 20... Rg8 {[%clk
0:01:12.2]} 21. Rxa6 {[%clk 0:00:45.1]} 21... Bg7 {[%clk 0:00:42.6]} 22. Qd5
{[%clk 0:00:45.4]} 22... Rf8 {[%clk 0:00:41]} 23. Re6 {[%clk 0:00:18.8]} 23...
Qxb2 {[%clk 0:00:36.7]} 24. Ne2 {[%clk 0:00:18.8]} 24... c6 {[%clk 0:00:30.5]}
25. Qe4 {[%clk 0:00:16.3]} 25... Qb6 {[%clk 0:00:20.8]} 26. Qe3 {[%clk
0:00:14.2]} 26... Bf6 {[%clk 0:00:17.8]} 27. h4 {[%clk 0:00:12.3]} 27... Kc7
{[%clk 0:00:18.1]} 28. Qf4+ {[%clk 0:00:11.2]} 28... Kd8 {[%clk 0:00:11.8]} 29.
Qd2+ {[%clk 0:00:10.9]} 29... Kc8 {[%clk 0:00:10]} 30. Re3 {[%clk 0:00:09.9]}
30... Rd8 {[%clk 0:00:08.2]} 31. Qc2 {[%clk 0:00:10.4]} 31... Kb8 {[%clk
0:00:08.1]} 32. Kh2 {[%clk 0:00:10.4]} 32... Qa5 {[%clk 0:00:06.3]} 33. Rd3
{[%clk 0:00:07.1]} 33... Rxd3 {[%clk 0:00:05.4]} 34. Qxd3 {[%clk 0:00:08]} 34...
Kc7 {[%clk 0:00:05.9]} 35. a3 {[%clk 0:00:06.2]} 35... Qe5 {[%clk 0:00:05.6]}
36. Nf4 {[%clk 0:00:05.3]} 36... Qd6 {[%clk 0:00:05.5]} 37. Qe4 {[%clk
0:00:05.3]} 37... Qxa3 {[%clk 0:00:04.5]} 38. Ne6+ {[%clk 0:00:05.7]} 38... Kb6
{[%clk 0:00:03]} 39. Nf8 {[%clk 0:00:03.8]} 1-0

[Event "*** SCC Grand Prix: Titled Tuesday Blitz"]
[Site "Chess.com"]
[Date "2020.07.07"]
[Round "8"]
[White "Harry_Rakkel"]
[Black "Region_07"]
[Result "1-0"]
[WhiteElo "2549"]
[BlackElo "2352"]
[TimeControl "180+1"]
[EndTime "11:36:36 PDT"]
[Termination "Harry_Rakkel won on time"]

1. d4 {[%clk 0:03:00.9]} 1... f5 {[%clk 0:02:58.9]} 2. g3 {[%clk 0:02:56.7]}
2... Nf6 {[%clk 0:02:58]} 3. Bg2 {[%clk 0:02:56.4]} 3... g6 {[%clk 0:02:56.6]}
4. Nf3 {[%clk 0:02:55.4]} 4... Bg7 {[%clk 0:02:57]} 5. O-O {[%clk 0:02:55.1]}
5... O-O {[%clk 0:02:57.5]} 6. c4 {[%clk 0:02:54.9]} 6... d6 {[%clk 0:02:57.8]}
7. Nc3 {[%clk 0:02:48.5]} 7... c6 {[%clk 0:02:56.2]} 8. b3 {[%clk 0:02:45.2]}
8... e5 {[%clk 0:02:33.2]} 9. dxe5 {[%clk 0:02:39.3]} 9... dxe5 {[%clk
0:02:34.1]} 10. Ba3 {[%clk 0:02:37.5]} 10... Qxd1 {[%clk 0:02:19.3]} 11. Raxd1
{[%clk 0:02:33.5]} 11... Re8 {[%clk 0:02:18.5]} 12. e4 {[%clk 0:02:11.3]} 12...
Nbd7 {[%clk 0:02:11.7]} 13. exf5 {[%clk 0:02:07]} 13... gxf5 {[%clk 0:02:11.9]}
14. Nh4 {[%clk 0:02:02.8]} 14... Nf8 {[%clk 0:02:10.9]} 15. Bh3 {[%clk 0:02:01]}
15... Ng4 {[%clk 0:02:06.8]} 16. Bxg4 {[%clk 0:01:55.9]} 16... fxg4 {[%clk
0:02:06.7]} 17. Ne4 {[%clk 0:01:55.3]} 17... Ne6 {[%clk 0:02:04.3]} 18. Nd6
{[%clk 0:01:43.6]} 18... Rd8 {[%clk 0:02:00.6]} 19. Nhf5 {[%clk 0:01:34.5]}
19... Bf8 {[%clk 0:01:53.3]} 20. Bb2 {[%clk 0:01:28.3]} 20... Nd4 {[%clk
0:01:48.7]} 21. Bxd4 {[%clk 0:01:23.8]} 21... Bxd6 {[%clk 0:00:45.8]} 22. Bxe5
{[%clk 0:01:11.8]} 22... Bxf5 {[%clk 0:00:43.9]} 23. Bxd6 {[%clk 0:01:10.9]}
23... Re8 {[%clk 0:00:34.4]} 24. Rfe1 {[%clk 0:01:03.4]} 24... Kf7 {[%clk
0:00:32.8]} 25. Bc5 {[%clk 0:00:52.4]} 25... Rxe1+ {[%clk 0:00:31.3]} 26. Rxe1
{[%clk 0:00:51.8]} 26... Re8 {[%clk 0:00:19.8]} 27. Be3 {[%clk 0:00:17.6]} 27...
a6 {[%clk 0:00:16.2]} 28. Rd1 {[%clk 0:00:16.5]} 28... Be6 {[%clk 0:00:11.3]}
29. Kf1 {[%clk 0:00:15.7]} 29... Bf5 {[%clk 0:00:10.9]} 30. Ke1 {[%clk
0:00:15.5]} 30... Be4 {[%clk 0:00:10.3]} 31. Rd4 {[%clk 0:00:14.4]} 31... Bf3
{[%clk 0:00:09.1]} 32. Kd2 {[%clk 0:00:13.8]} 32... Ke7 {[%clk 0:00:07.8]} 33.
Kc3 {[%clk 0:00:13.1]} 33... Ke6 {[%clk 0:00:07.5]} 34. Kb4 {[%clk 0:00:12.2]}
34... b6 {[%clk 0:00:07.1]} 35. c5 {[%clk 0:00:12.2]} 35... a5+ {[%clk
0:00:04.6]} 36. Ka3 {[%clk 0:00:11.7]} 36... b5 {[%clk 0:00:04]} 37. Rd6+ {[%clk
0:00:10.9]} 37... Kf7 {[%clk 0:00:02.1]} 38. Rh6 {[%clk 0:00:07.2]} 38... Be4
{[%clk 0:00:01.4]} 39. h3 {[%clk 0:00:04.9]} 1-0

[Event "*** SCC Grand Prix: Titled Tuesday Blitz"]
[Site "Chess.com"]
[Date "2020.07.07"]
[Round "8"]
[White "K-Nygren"]
[Black "hectorfiori"]
[Result "1-0"]
[WhiteElo "2462"]
[BlackElo "2324"]
[TimeControl "180+1"]
[EndTime "11:36:37 PDT"]
[Termination "K-Nygren won by resignation"]

1. e4 {[%clk 0:03:00.9]} 1... c5 {[%clk 0:02:59.4]} 2. Nf3 {[%clk 0:03:00.5]}
2... e6 {[%clk 0:02:59.6]} 3. d4 {[%clk 0:03:01]} 3... cxd4 {[%clk 0:03:00.5]}
4. Nxd4 {[%clk 0:03:01.9]} 4... Nf6 {[%clk 0:03:00.9]} 5. Nc3 {[%clk 0:03:02.2]}
5... Bb4 {[%clk 0:03:01.4]} 6. e5 {[%clk 0:02:54.5]} 6... Ne4 {[%clk 0:02:53.7]}
7. Qf3 {[%clk 0:02:39]} 7... d5 {[%clk 0:02:45.9]} 8. Bb5+ {[%clk 0:02:33.1]}
8... Bd7 {[%clk 0:02:37.9]} 9. O-O {[%clk 0:02:31.2]} 9... Bxc3 {[%clk
0:02:29.2]} 10. bxc3 {[%clk 0:02:29.7]} 10... Bxb5 {[%clk 0:02:25.8]} 11. Nxb5
{[%clk 0:02:29.1]} 11... a6 {[%clk 0:02:26.4]} 12. Nd6+ {[%clk 0:02:18.1]} 12...
Nxd6 {[%clk 0:02:24.2]} 13. exd6 {[%clk 0:02:19]} 13... Qxd6 {[%clk 0:02:24.2]}
14. Rb1 {[%clk 0:02:18.8]} 14... b5 {[%clk 0:02:14.4]} 15. Bf4 {[%clk
0:02:17.9]} 15... Qe7 {[%clk 0:02:00]} 16. Rfe1 {[%clk 0:02:12.7]} 16... Nc6
{[%clk 0:01:29.9]} 17. c4 {[%clk 0:02:12.7]} 17... bxc4 {[%clk 0:01:16.6]} 18.
Rb6 {[%clk 0:02:12]} 18... Rc8 {[%clk 0:01:06.2]} 19. Qg3 {[%clk 0:02:11.9]}
19... O-O {[%clk 0:01:03.5]} 20. Bd6 {[%clk 0:02:11.9]} 20... Qa7 {[%clk
0:00:57.3]} 21. Bxf8 {[%clk 0:02:11.9]} 21... Kxf8 {[%clk 0:00:51.8]} 22. Qd6+
{[%clk 0:02:11.3]} 22... Ne7 {[%clk 0:00:51.2]} 23. Reb1 {[%clk 0:02:08]} 23...
Qc7 {[%clk 0:00:43]} 24. Qxc7 {[%clk 0:01:57.4]} 24... Rxc7 {[%clk 0:00:43.9]}
25. Rb8+ {[%clk 0:01:57.3]} 25... Nc8 {[%clk 0:00:40.9]} 26. R1b7 {[%clk
0:01:54.9]} 26... Rxb7 {[%clk 0:00:39]} 27. Rxb7 {[%clk 0:01:55.1]} 27... Nd6
{[%clk 0:00:38.7]} 28. Rb6 {[%clk 0:01:53.3]} 28... Nb5 {[%clk 0:00:36]} 29.
Rxa6 {[%clk 0:01:49.6]} 29... Nd4 {[%clk 0:00:36]} 30. Kf1 {[%clk 0:01:38.8]}
30... Nxc2 {[%clk 0:00:35.2]} 31. Ra8+ {[%clk 0:01:38.9]} 31... Ke7 {[%clk
0:00:34.5]} 32. Ke2 {[%clk 0:01:38.4]} 32... d4 {[%clk 0:00:29.4]} 33. Rc8
{[%clk 0:01:27.9]} 33... c3 {[%clk 0:00:28.7]} 34. Kd3 {[%clk 0:01:14.8]} 34...
Ne1+ {[%clk 0:00:28.2]} 35. Kxd4 {[%clk 0:01:08.7]} 35... c2 {[%clk 0:00:28.5]}
36. a4 {[%clk 0:01:04.8]} 36... Kd7 {[%clk 0:00:28.7]} 37. Rc3 {[%clk 0:01:01]}
37... f6 {[%clk 0:00:18.7]} 38. a5 {[%clk 0:00:51.6]} 38... e5+ {[%clk
0:00:18.6]} 39. Ke3 {[%clk 0:00:44.7]} 39... Nxg2+ {[%clk 0:00:17.3]} 40. Kd2
{[%clk 0:00:44.6]} 40... Nf4 {[%clk 0:00:14.6]} 41. a6 {[%clk 0:00:42.7]} 41...
Nd5 {[%clk 0:00:14.1]} 42. a7 {[%clk 0:00:27.6]} 42... Nb6 {[%clk 0:00:13.1]}
43. Rb3 {[%clk 0:00:21.7]} 43... Na8 {[%clk 0:00:12.1]} 44. Rb8 {[%clk
0:00:20.1]} 44... Nc7 {[%clk 0:00:12.1]} 45. Rb7 {[%clk 0:00:18.1]} 1-0